bitfinex/quotes_BTCUSD_20250813
["timestamp","ask_amount","ask_price","bid_price","bid_amount"]
[1755062825295,16.20183612,119500.0,119490.0,1.21367157]
[1755062825633,16.20183612,119500.0,119490.0,1.51843157]
[1755062826963,16.20183612,119500.0,119490.0,1.54364055]
[1755062827176,16.20183612,119500.0,119490.0,1.56308957]
[1755062827387,16.15983612,119500.0,119490.0,1.48671412]
[1755062827821,16.15983612,119500.0,119490.0,1.28619412]
[1755062829137,16.14677189,119500.0,119490.0,1.28619412]
[1755062829826,16.14677189,119500.0,119490.0,1.28419412]
[1755062830255,16.14677189,119500.0,119490.0,1.28719412]
[1755062831378,16.14677189,119500.0,119490.0,1.28419412]
[1755062831825,16.14677189,119500.0,119490.0,1.30392412]
[1755062832484,16.14677189,119500.0,119490.0,1.30192412]
[1755062833150,16.14677189,119500.0,119490.0,1.50192412]
[1755062834014,16.14677189,119500.0,119490.0,1.50392412]
[1755062834415,16.10477189,119500.0,119490.0,1.50392412]
[1755062834650,16.10477189,119500.0,119490.0,1.50692412]
[1755062835740,16.10477189,119500.0,119490.0,1.81168412]
[1755062838950,16.10477189,119500.0,119490.0,1.50692412]
[1755062840117,16.10477189,119500.0,119490.0,1.53192412]
[1755062840677,16.10477189,119500.0,119490.0,1.66582653]
[1755062841169,16.10477189,119500.0,119490.0,1.53192412]
[1755062841382,16.10477189,119500.0,119490.0,1.50692412]
[1755062841597,16.06277189,119500.0,119490.0,1.53192412]
[1755062842243,16.06277189,119500.0,119490.0,1.66582653]
[1755062843381,16.06277189,119500.0,119490.0,1.53192412]
[1755062844428,16.06277189,119500.0,119490.0,1.64082653]
[1755062844634,16.06277189,119500.0,119490.0,1.66582653]
[1755062845221,16.06277189,119500.0,119490.0,1.53192412]
[1755062845579,16.06277189,119500.0,119490.0,1.83664412]
[1755062845982,16.06277189,119500.0,119490.0,1.81143514]
[1755062846733,16.06277189,119500.0,119490.0,1.78643514]
[1755062846947,0.0004,119520.0,119510.0,0.74244902]
[1755062847172,0.0004,119520.0,119510.0,1.70917212]
[1755062847864,0.0004,119520.0,119510.0,1.73424512]
[1755062848556,0.0004,119520.0,119510.0,1.70638057]
[1755062849337,0.0004,119520.0,119510.0,1.70838057]
[1755062850225,0.0004,119520.0,119510.0,1.41594527]
[1755062852075,0.0004,119520.0,119510.0,1.08694527]
[1755062852352,0.0004,119520.0,119510.0,1.19845625]
[1755062855361,0.0004,119520.0,119510.0,1.06949625]
[1755062855559,0.0004,119520.0,119510.0,1.50317625]
[1755062860038,0.0004,119520.0,119510.0,1.26997625]
[1755062860255,0.0004,119520.0,119510.0,1.39889625]
[1755062862250,0.0004,119520.0,119510.0,1.41562625]
[1755062862470,0.0004,119520.0,119510.0,1.08622625]
[1755062862726,0.0004,119520.0,119510.0,1.21514625]
[1755062865074,0.0004,119520.0,119510.0,1.08622625]
[1755062865287,0.0004,119520.0,119510.0,0.84014625]
[1755062865492,0.0004,119520.0,119510.0,1.21514625]
[1755062865697,0.0004,119520.0,119510.0,1.51986625]
[1755062866598,0.68763424,119530.0,119510.0,1.51986625]
[1755062866775,0.68763424,119530.0,119520.0,0.21164325]
[1755062866983,0.68763424,119530.0,119520.0,0.18272325]
[1755062867146,0.68763424,119530.0,119520.0,0.31164325]
[1755062867356,0.68763424,119530.0,119520.0,0.33671925]
[1755062868152,0.68963424,119530.0,119520.0,0.33671925]
[1755062868359,0.002,119530.0,119520.0,0.33671925]
[1755062868568,0.6988619,119530.0,119520.0,0.33671925]
[1755062868946,0.002,119530.0,119520.0,0.33771925]
[1755062869611,0.6988619,119530.0,119520.0,0.40879925]
[1755062870038,0.6988619,119530.0,119520.0,0.68771925]
[1755062870271,0.6988619,119530.0,119520.0,0.55879925]
[1755062870497,0.6988619,119530.0,119520.0,0.68771925]
[1755062872792,0.77658835,119530.0,119520.0,0.68771925]
[1755062872998,0.77658835,119530.0,119520.0,0.55879925]
[1755062873303,0.77658835,119530.0,119520.0,0.68767925]
[1755062873501,0.002,119530.0,119520.0,0.68767925]
[1755062875546,0.002,119530.0,119520.0,0.79191925]
[1755062875750,0.002,119530.0,119520.0,0.99239925]
[1755062877163,0.77658835,119530.0,119520.0,0.99239925]
[1755062879003,0.77658835,119530.0,119520.0,0.73815925]
[1755062879213,0.77658835,119530.0,119520.0,0.71308325]
[1755062879844,0.77658835,119530.0,119520.0,0.71208325]
[1755062880062,0.002,119530.0,119520.0,0.58320325]
[1755062880281,0.77658835,119530.0,119520.0,0.71208325]
[1755062880536,0.77658835,119530.0,119520.0,0.38320325]
[1755062880702,0.77658835,119530.0,119520.0,0.18272325]
[1755062881628,0.77458835,119530.0,119520.0,0.31160325]
[1755062881859,0.77658835,119530.0,119520.0,0.31160325]
[1755062882067,0.77458835,119530.0,119520.0,0.18272325]
[1755062882487,0.77858835,119530.0,119520.0,0.31156325]
[1755062882800,0.77858835,119530.0,119520.0,0.51156325]
[1755062882991,0.77858835,119530.0,119520.0,0.18272325]
[1755062883223,0.77858835,119530.0,119520.0,0.31156325]
[1755062883439,0.77858835,119530.0,119520.0,0.18272325]
[1755062883660,0.77858835,119530.0,119520.0,0.31156325]
[1755062885770,0.77858835,119530.0,119520.0,0.61632325]
[1755062885993,0.77858835,119530.0,119520.0,0.5336]
[1755062886438,0.77858835,119530.0,119520.0,0.40476]
[1755062886692,0.77858835,119530.0,119520.0,0.5336]
[1755062887150,0.77858835,119530.0,119520.0,0.40476]
[1755062887368,0.77858835,119530.0,119520.0,0.5336]
[1755062889795,0.78863063,119530.0,119520.0,0.5336]
[1755062893410,0.78863063,119530.0,119520.0,0.20424]
[1755062893551,0.78863063,119530.0,119520.0,0.5336]
[1755062894854,1.4087993,119530.0,119520.0,0.5336]
[1755062895891,0.01404228,119530.0,119520.0,0.5336]
[1755062896113,1.4087993,119530.0,119520.0,0.5336]
[1755062897460,1.39875702,119530.0,119520.0,0.5336]
[1755062897667,0.004,119530.0,119520.0,0.53356]
[1755062897820,1.39875702,119530.0,119520.0,0.53356]
[1755062898024,1.39875702,119530.0,119520.0,0.53657]
[1755062901850,1.39859465,119530.0,119520.0,0.53657]
[1755062904955,1.39859465,119530.0,119520.0,0.53356]
[1755062906961,1.39859465,119530.0,119520.0,0.53657]
[1755062907169,1.39859465,119530.0,119520.0,0.53857]
[1755062907371,0.70121614,119530.0,119520.0,0.53857]
[1755062909306,1.39859465,119530.0,119520.0,0.53857]
[1755062909836,1.39859465,119530.0,119520.0,0.53657]
[1755062911341,1.39859465,119530.0,119520.0,0.53356]
[1755062914582,1.39859465,119530.0,119520.0,0.53663]
[1755062917336,1.39859465,119530.0,119520.0,0.40783]
[1755062917463,1.39859465,119530.0,119520.0,0.53659]
[1755062919515,1.39859465,119530.0,119520.0,0.40783]
[1755062919872,1.39859465,119530.0,119520.0,0.53854]
[1755062922562,1.39859465,119530.0,119520.0,0.53348]
[1755062923568,1.39859465,119530.0,119520.0,0.40476]
[1755062923776,1.39859465,119530.0,119520.0,0.53348]
[1755062927392,1.39859465,119530.0,119520.0,0.40476]
[1755062927620,1.39859465,119530.0,119520.0,0.53348]
[1755062929368,1.50408367,119530.0,119520.0,0.53344]
[1755062929573,1.50408367,119530.0,119520.0,0.43344]
[1755062930221,1.50024604,119530.0,119520.0,0.43344]
[1755062931531,1.50224604,119530.0,119520.0,0.43344]
[1755062932118,1.50624604,119530.0,119520.0,0.43344]
[1755062934514,0.11148902,119530.0,119520.0,0.43344]
[1755062934759,1.50624604,119530.0,119520.0,0.30476]
[1755062934954,1.50624604,119530.0,119520.0,0.43344]
[1755062935687,1.50624604,119530.0,119520.0,0.30476]
[1755062935926,1.50624604,119530.0,119520.0,0.43344]
[1755062936142,1.67356805,119530.0,119520.0,0.30476]
[1755062936349,1.50624604,119530.0,119520.0,0.43344]
[1755062936672,1.53133104,119530.0,119520.0,0.4334]
[1755062940069,1.53133104,119530.0,119520.0,0.43645]
[1755062941173,1.69865305,119530.0,119520.0,0.43645]
[1755062941383,1.69865305,119530.0,119520.0,0.4334]
[1755062944638,1.69541305,119530.0,119520.0,0.4334]
[1755062944768,1.69541305,119530.0,119520.0,0.32916]
[1755062947022,0.30065603,119530.0,119520.0,0.32916]
[1755062947244,1.69541305,119530.0,119520.0,0.33221]
[1755062949207,1.52809104,119530.0,119520.0,0.33221]
[1755062950961,1.52809104,119530.0,119520.0,0.34221]
[1755062954329,1.52809104,119530.0,119520.0,0.34425]
[1755062958181,1.52809104,119530.0,119520.0,0.33425]
[1755062964000,1.69541305,119530.0,119520.0,0.33425]
[1755062964195,1.69541305,119530.0,119520.0,0.32908]
[1755062965830,1.69541305,119530.0,119520.0,0.33213]
[1755062970028,2.47551481,119530.0,119520.0,0.20052]
[1755062970242,2.47551481,119530.0,119520.0,0.32908]
[1755062970884,2.50051481,119530.0,119520.0,0.20052]
[1755062971094,2.49451481,119530.0,119520.0,0.32908]
[1755062971309,2.50151481,119530.0,119520.0,0.32908]
[1755062972130,2.49451481,119530.0,119520.0,0.32908]
[1755062972569,2.50251481,119530.0,119520.0,0.32908]
[1755062973046,2.50551481,119530.0,119520.0,0.32908]
[1755062973573,2.50251481,119530.0,119520.0,0.32908]
[1755062973785,2.50551481,119530.0,119520.0,0.32908]
[1755062974409,0.41337928,119530.0,119520.0,0.32908]
[1755062974616,2.50551481,119530.0,119520.0,0.32908]
[1755062987142,2.50551481,119530.0,119520.0,0.33225]
[1755062999052,2.50551481,119530.0,119520.0,0.20369]
[1755062999259,2.50551481,119530.0,119520.0,0.33217]
[1755063004989,2.50551481,119530.0,119520.0,0.33429]
[1755063005554,1.8081363,119530.0,119520.0,0.33429]
[1755063020113,1.8081363,119530.0,119520.0,0.33217]
[1755063020335,1.8081363,119530.0,119520.0,0.329]
[1755063021244,1.8081363,119530.0,119520.0,0.33198]
[1755063025440,2.50551481,119530.0,119520.0,0.329]
[1755063025651,0.41337928,119530.0,119520.0,0.329]
[1755063026008,1.8081363,119530.0,119520.0,0.329]
[1755063027834,1.8081363,119530.0,119520.0,0.3341]
[1755063028493,1.81770089,119530.0,119520.0,0.3341]
[1755063033432,1.81770089,119530.0,119520.0,0.329]
[1755063035028,2.5150794,119530.0,119520.0,0.329]
[1755063035169,1.81770089,119530.0,119520.0,0.329]
[1755063041218,1.81770089,119530.0,119520.0,0.33196]
[1755063044948,1.81770089,119530.0,119520.0,0.329]
[1755063045388,1.81770089,119530.0,119520.0,0.33196]
[1755063051183,1.81770089,119530.0,119520.0,0.33405]
[1755063051592,1.8081363,119530.0,119520.0,0.33405]
[1755063052807,1.8081363,119530.0,119520.0,0.33196]
[1755063053029,1.8081363,119530.0,119520.0,0.32876]
[1755063054320,2.50551481,119530.0,119520.0,0.20052]
[1755063054529,2.50551481,119530.0,119520.0,0.32876]
[1755063055774,2.51466022,119530.0,119520.0,0.32876]
[1755063055939,2.57010595,119530.0,119520.0,0.32876]
[1755063056339,0.27283903,119510.0,119500.0,0.00296]
[1755063056531,1.7503193,119510.0,119500.0,0.22565]
[1755063057178,1.7754143,119510.0,119500.0,0.22565]
[1755063057593,1.7784143,119510.0,119500.0,0.35389]
[1755063058123,1.7754143,119510.0,119500.0,0.35389]
[1755063058327,1.7784143,119510.0,119500.0,0.35389]
[1755063059513,1.7794143,119510.0,119500.0,0.35389]
[1755063059732,1.8044143,119510.0,119500.0,0.35389]
[1755063060595,1.8044143,119510.0,119500.0,0.33389]
[1755063061631,0.04244902,119480.0,119470.0,0.0032]
[1755063061850,0.30628604,119470.0,119460.0,0.0032]
[1755063062067,0.30628604,119470.0,119400.0,0.33391]
[1755063062068,0.19327085,119440.0,119400.0,0.28391]
[1755063062279,0.19327085,119440.0,119430.0,0.00214]
[1755063062489,0.28131085,119440.0,119430.0,0.13354]
[1755063062948,0.39853526,119440.0,119430.0,0.13354]
[1755063063403,1.70525228,119440.0,119430.0,0.13354]
[1755063063611,1.00787377,119440.0,119430.0,0.13354]
[1755063063866,0.83205194,119440.0,119430.0,0.13354]
[1755063064286,1.69687854,119440.0,119430.0,0.13354]
[1755063064699,1.07828557,119440.0,119430.0,0.13354]
[1755063064895,1.07928557,119440.0,119430.0,0.13354]
[1755063065108,0.91183748,119440.0,119430.0,0.13354]
[1755063065530,0.93749357,119440.0,119430.0,0.13354]
[1755063066400,0.93749357,119440.0,119430.0,0.13358]
[1755063066988,1.10494166,119440.0,119430.0,0.13358]
[1755063067886,1.03534166,119440.0,119430.0,0.13358]
[1755063069017,1.04456016,119440.0,119430.0,0.13358]
[1755063069788,1.06200918,119440.0,119430.0,0.13358]
[1755063071326,1.06200918,119440.0,119430.0,0.13144]
[1755063072804,1.06200918,119440.0,119430.0,0.13358]
[1755063073825,1.06200918,119440.0,119430.0,0.13144]
[1755063074032,1.06200918,119440.0,119430.0,0.12824]
[1755063075554,1.06200918,119440.0,119430.0,0.13144]
[1755063075755,1.06400918,119440.0,119430.0,0.13144]
[1755063075975,1.06300918,119440.0,119430.0,0.13144]
[1755063076387,1.08054417,119440.0,119430.0,0.13144]
[1755063078592,1.14739188,119440.0,119430.0,0.13144]
[1755063078799,1.14555188,119440.0,119430.0,0.12824]
[1755063079244,0.18491113,119430.0,119410.0,0.2006]
[1755063079454,1.80252748,119420.0,119410.0,0.2038]
[1755063079662,1.04189842,119420.0,119410.0,0.33316]
[1755063080291,1.86051149,119420.0,119410.0,0.32996]
[1755063080503,1.08434744,119420.0,119410.0,0.32996]
[1755063080857,1.08434744,119420.0,119410.0,0.33316]
[1755063081481,0.91687131,119420.0,119410.0,0.3353]
[1755063081802,0.89287131,119420.0,119410.0,0.3353]
[1755063082011,1.08534744,119420.0,119410.0,0.3353]
[1755063082988,1.08634744,119420.0,119410.0,0.3353]
[1755063083464,1.07081245,119420.0,119410.0,0.3353]
[1755063083684,1.08636992,119420.0,119410.0,0.3353]
[1755063085242,1.08638429,119420.0,119410.0,0.2038]
[1755063085457,1.86254834,119420.0,119410.0,0.33016]
[1755063085871,1.8625493,119420.0,119410.0,0.33016]
[1755063086442,1.86255709,119420.0,119410.0,0.33016]
[1755063087430,1.08639304,119420.0,119410.0,0.33016]
[1755063088046,1.08639304,119420.0,119410.0,0.33336]
[1755063088500,0.27291917,119410.0,119370.0,0.0034]
[1755063088715,1.87003261,119380.0,119370.0,0.20096]
[1755063088941,0.04244902,119360.0,119350.0,0.20396]
[1755063089153,1.77791803,119360.0,119350.0,0.33044]
[1755063089606,1.80304603,119360.0,119350.0,0.33044]
[1755063090275,1.82593869,119360.0,119350.0,0.33044]
[1755063090728,1.82793869,119360.0,119350.0,0.33044]
[1755063090936,1.91066194,119360.0,119350.0,0.33044]
[1755063091573,1.91343754,119360.0,119350.0,0.33044]
[1755063091779,1.91780181,119360.0,119350.0,0.33044]
[1755063092402,1.91780181,119360.0,119350.0,0.33356]
[1755063092605,1.90322122,119360.0,119350.0,0.33356]
[1755063092820,1.91879934,119360.0,119350.0,0.33356]
[1755063093260,1.91879967,119360.0,119350.0,0.33044]
[1755063094872,0.18503742,119340.0,119330.0,0.1044]
[1755063095090,1.05950317,119340.0,119330.0,0.30524]
[1755063095300,1.08450317,119340.0,119330.0,0.20084]
[1755063095512,1.08450317,119340.0,119330.0,0.33116]
[1755063096150,1.08450317,119340.0,119330.0,0.33642]
[1755063096151,0.30833912,119340.0,119330.0,0.33642]
[1755063096337,0.89291477,119340.0,119330.0,0.33642]
[1755063096958,1.06050317,119340.0,119330.0,0.34950873]
[1755063097178,1.08550317,119340.0,119330.0,0.34950873]
[1755063097536,0.32067953,119340.0,119330.0,0.34950873]
[1755063097743,1.09684358,119340.0,119330.0,0.34950873]
[1755063097984,1.09484358,119340.0,119330.0,0.34950873]
[1755063098235,1.09584358,119340.0,119330.0,0.34950873]
[1755063098400,1.09484358,119340.0,119330.0,0.34950873]
[1755063098602,1.09684358,119340.0,119330.0,0.34950873]
[1755063098816,1.09684358,119340.0,119330.0,0.33642]
[1755063098965,1.09484358,119340.0,119330.0,0.33642]
[1755063099622,1.11997258,119340.0,119330.0,0.33642]
[1755063100051,1.13471435,119340.0,119330.0,0.33642]
[1755063100255,1.11997258,119340.0,119330.0,0.33642]
[1755063101005,0.95238418,119340.0,119330.0,0.33642]
[1755063101515,0.04170745,119340.0,119330.0,0.53642]
[1755063101741,0.001,119340.0,119330.0,0.53642]
[1755063101940,0.79268906,119340.0,119330.0,0.53642]
[1755063102344,0.77716405,119340.0,119330.0,0.53642]
[1755063102546,0.79269199,119340.0,119330.0,0.53642]
[1755063102935,0.79269199,119340.0,119330.0,0.53842]
[1755063103715,0.79169199,119340.0,119330.0,0.53842]
[1755063104092,0.01552794,119340.0,119330.0,0.53942]
[1755063104315,0.79169199,119340.0,119330.0,0.53942]
[1755063104538,0.79169199,119340.0,119330.0,0.53842]
[1755063104975,0.79169199,119340.0,119330.0,0.53942]
[1755063107988,0.79169199,119340.0,119330.0,0.33942]
[1755063108190,0.8585397,119340.0,119330.0,0.33942]
[1755063108413,0.8585397,119340.0,119330.0,0.3342]
[1755063108414,1.12630037,119340.0,119330.0,0.3342]
[1755063108941,1.12607137,119340.0,119330.0,0.3342]
[1755063109143,1.15107137,119340.0,119330.0,0.3342]
[1755063109353,1.15107137,119340.0,119330.0,0.3322]
[1755063109797,1.15107137,119340.0,119330.0,0.3332]
[1755063110002,1.15107137,119340.0,119330.0,0.3322]
[1755063110824,1.13577243,119340.0,119330.0,0.3322]
[1755063111027,1.13677243,119340.0,119330.0,0.20184]
[1755063111234,1.13677243,119340.0,119330.0,0.33116]
[1755063112474,1.1411367,119340.0,119330.0,0.33116]
[1755063113756,0.94379459,119310.0,119300.0,0.00206683]
[1755063113943,1.03688936,119310.0,119300.0,0.20088]
[1755063114164,1.03688936,119310.0,119300.0,0.20302]
[1755063114581,0.8588873,119310.0,119300.0,0.20302]
[1755063114796,0.8588873,119310.0,119300.0,0.33326]
[1755063115013,0.8588873,119310.0,119300.0,0.33526]
[1755063115258,0.8588873,119310.0,119300.0,0.33926]
[1755063115464,0.08272325,119310.0,119300.0,0.33526]
[1755063115689,0.8588873,119310.0,119300.0,0.33526]
[1755063115907,0.8588873,119310.0,119300.0,0.33938]
[1755063116250,0.8588873,119310.0,119300.0,0.33738]
[1755063116475,0.8578873,119310.0,119300.0,0.33738]
[1755063117494,0.08172325,119310.0,119300.0,0.33738]
[1755063117619,0.8578873,119310.0,119300.0,0.33738]
[1755063117828,0.8568873,119310.0,119300.0,0.33738]
[1755063120101,0.8558873,119310.0,119300.0,0.33738]
[1755063120789,0.8558873,119310.0,119300.0,0.3402395]
[1755063121052,0.87153306,119310.0,119300.0,0.3402395]
[1755063121254,0.87053306,119310.0,119300.0,0.3402395]
[1755063121371,0.09436901,119310.0,119300.0,0.3402395]
[1755063121572,0.87053306,119310.0,119300.0,0.3402395]
[1755063127044,0.87248306,119310.0,119300.0,0.3402395]
[1755063127231,0.87248306,119310.0,119300.0,0.3371195]
[1755063127475,0.87248306,119310.0,119300.0,0.3349795]
[1755063128264,0.09631901,119310.0,119300.0,0.3401195]
[1755063128490,0.87053306,119310.0,119300.0,0.3401195]
[1755063130214,1.0401136,119310.0,119300.0,0.3349795]
[1755063130426,1.9442311,119310.0,119300.0,0.2047395]
[1755063130647,1.86174667,119310.0,119300.0,0.3353395]
[1755063131563,1.88687901,119310.0,119300.0,0.3353395]
[1755063132213,1.88787901,119310.0,119300.0,0.3353395]
[1755063132856,1.10869496,119310.0,119300.0,0.3353395]
[1755063133067,1.10869496,119310.0,119300.0,0.3343395]
[1755063133302,1.88787901,119310.0,119300.0,0.3343395]
[1755063133522,1.88887901,119310.0,119300.0,0.3343395]
[1755063134397,0.18510766,119290.0,119280.0,0.0066253]
[1755063134604,1.06158743,119290.0,119280.0,0.2075853]
[1755063135247,1.08960743,119290.0,119280.0,0.2075853]
[1755063135660,1.08960743,119290.0,119280.0,0.3381853]
[1755063136083,0.31344338,119290.0,119280.0,0.3381853]
[1755063136366,1.08658743,119290.0,119280.0,0.3381853]
[1755063136806,0.14276474,119290.0,119280.0,0.3443253]
[1755063137034,0.91697879,119290.0,119280.0,0.3443253]
[1755063137263,0.31042338,119290.0,119280.0,0.3443253]
[1755063137506,1.11507221,119290.0,119280.0,0.3391853]
[1755063137739,1.18192603,119290.0,119280.0,0.3391853]
[1755063138584,0.40576198,119290.0,119280.0,0.3391853]
[1755063138795,1.18192603,119290.0,119280.0,0.3391853]
[1755063139006,1.17890603,119290.0,119280.0,0.3391853]
[1755063139452,1.11205832,119290.0,119280.0,0.3391853]
[1755063139671,0.94439968,119290.0,119280.0,0.3411453]
[1755063139924,0.91939968,119290.0,119280.0,0.3443253]
[1755063140145,0.91939968,119290.0,119280.0,0.3433253]
[1755063140575,0.9268011,119290.0,119280.0,0.3433253]
[1755063140783,0.94244858,119290.0,119280.0,0.3433253]
[1755063141200,0.9268011,119290.0,119280.0,0.3433253]
[1755063141411,0.16628479,119290.0,119280.0,0.3433253]
[1755063141625,0.94244884,119290.0,119280.0,0.3433253]
[1755063142065,1.11015748,119290.0,119280.0,0.3433253]
[1755063142286,1.11015748,119290.0,119280.0,0.3381853]
[1755063142963,1.11015685,119290.0,119280.0,0.3381853]
[1755063143185,1.08515685,119290.0,119280.0,0.3401453]
[1755063143400,1.11015685,119290.0,119280.0,0.3433253]
[1755063143616,1.11015685,119290.0,119280.0,0.3381853]
[1755063144068,1.23798876,119290.0,119280.0,0.3381853]
[1755063144285,1.17999456,119290.0,119280.0,0.3381853]
[1755063144704,1.13372941,119290.0,119280.0,0.3381853]
[1755063145149,1.13472941,119290.0,119280.0,0.3381853]
[1755063145363,1.89062831,119290.0,119270.0,0.0002]
[1755063145583,1.77764277,119280.0,119270.0,0.2012]
[1755063145797,0.18514984,119260.0,119250.0,0.002422]
[1755063146011,0.84579828,119260.0,119250.0,0.208562]
[1755063146220,0.84571828,119260.0,119250.0,0.208562]
[1755063146467,1.0134991,119260.0,119250.0,0.205382]
[1755063146681,1.0134991,119260.0,119250.0,0.336622]
[1755063147134,0.83741828,119260.0,119250.0,0.339802]
[1755063147346,0.83733828,119260.0,119250.0,0.339802]
[1755063147792,0.09837036,119260.0,119250.0,0.339802]
[1755063148002,0.08272325,119260.0,119250.0,0.539802]
[1755063148212,0.003,119280.0,119250.0,0.539802]
[1755063148418,0.001,119260.0,119250.0,0.536622]
[1755063148839,0.08272325,119270.0,119250.0,0.536622]
[1755063149051,0.08272325,119270.0,119260.0,0.00318]
[1755063149261,0.12167676,119290.0,119260.0,0.00514]
[1755063149497,0.1238195,119290.0,119270.0,0.33124]
[1755063149718,0.10818803,119290.0,119280.0,0.00208]
[1755063149930,0.10818803,119290.0,119280.0,0.00503]
[1755063151313,0.83808693,119290.0,119280.0,0.00503]
[1755063151570,0.10818803,119290.0,119280.0,0.00503]
[1755063152030,1.07359328,119290.0,119280.0,0.00503]
[1755063152273,0.1676727,119280.0,119270.0,0.13419]
[1755063152489,0.98230485,119280.0,119270.0,0.13124]
[1755063152738,0.99794183,119280.0,119270.0,0.13124]
[1755063153427,1.01825085,119280.0,119270.0,0.13124]
[1755063153864,1.04339585,119280.0,119270.0,0.13124]
[1755063155777,1.04439585,119280.0,119270.0,0.13124]
[1755063155982,1.04639585,119280.0,119270.0,0.13124]
[1755063156638,1.07139585,119280.0,119270.0,0.13124]
[1755063156854,1.80129475,119280.0,119270.0,0.13124]
[1755063157083,1.07139585,119280.0,119270.0,0.13124]
[1755063159399,1.07141332,119280.0,119270.0,0.13124]
[1755063160057,1.07141862,119280.0,119270.0,0.13124]
[1755063160783,0.16769148,119270.0,119250.0,0.21946792]
[1755063161020,0.81463215,119260.0,119250.0,0.21651792]
[1755063161242,0.8302919,119260.0,119250.0,0.21651792]
[1755063161458,0.8302919,119260.0,119250.0,0.22154792]
[1755063161675,0.8554389,119260.0,119250.0,0.22154792]
[1755063161890,0.8554389,119260.0,119250.0,0.35254792]
[1755063162084,0.8554389,119260.0,119250.0,0.35454792]
[1755063162539,0.8554389,119260.0,119250.0,0.35354792]
[1755063162720,0.8554389,119260.0,119250.0,0.35454792]
[1755063162887,0.8554389,119260.0,119250.0,0.341452]
[1755063163294,0.8554389,119260.0,119250.0,0.340452]
[1755063163718,0.8554389,119260.0,119250.0,0.341452]
[1755063164237,0.8554389,119260.0,119250.0,0.340452]
[1755063164467,0.87231644,119260.0,119250.0,0.339452]
[1755063164622,0.87231644,119260.0,119250.0,0.203422]
[1755063164623,1.06041628,119260.0,119250.0,0.203422]
[1755063164840,1.06041628,119260.0,119250.0,0.334342]
[1755063165037,1.05746628,119260.0,119250.0,0.334342]
[1755063165470,0.32756738,119260.0,119250.0,0.334342]
[1755063165679,1.05746628,119260.0,119250.0,0.334342]
[1755063165929,1.05846628,119260.0,119250.0,0.334342]
[1755063166365,1.05746628,119260.0,119250.0,0.334342]
[1755063166821,1.05846628,119260.0,119250.0,0.334342]
[1755063167040,0.32856738,119260.0,119250.0,0.334342]
[1755063167249,1.05746628,119260.0,119250.0,0.334342]
[1755063167467,1.05946628,119260.0,119250.0,0.334342]
[1755063167671,1.06246628,119260.0,119250.0,0.334342]
[1755063168539,1.04680653,119260.0,119250.0,0.334342]
[1755063168956,0.31690763,119260.0,119250.0,0.334342]
[1755063169185,0.31690763,119260.0,119250.0,0.339372]
[1755063169186,0.12974779,119260.0,119250.0,0.339372]
[1755063169391,0.11287025,119260.0,119250.0,0.339372]
[1755063169809,0.84276915,119260.0,119250.0,0.339372]
[1755063170015,0.84076915,119260.0,119250.0,0.339372]
[1755063170252,0.84076915,119260.0,119250.0,0.208452]
[1755063170486,0.84176915,119260.0,119250.0,0.339492]
[1755063171534,0.83876915,119260.0,119250.0,0.339492]
[1755063171748,0.83976915,119260.0,119250.0,0.339492]
[1755063172395,0.86965212,119260.0,119250.0,0.339492]
[1755063173072,0.13975322,119260.0,119250.0,0.339492]
[1755063173308,0.86965212,119260.0,119250.0,0.339492]
[1755063173777,0.13975322,119260.0,119250.0,0.339492]
[1755063174001,0.86965212,119260.0,119250.0,0.339492]
[1755063174457,0.13975322,119260.0,119250.0,0.339492]
[1755063174705,0.86965212,119260.0,119250.0,0.339492]
[1755063175373,0.13975322,119260.0,119250.0,0.339492]
[1755063175607,0.86965212,119260.0,119250.0,0.339492]
[1755063175822,0.13975322,119260.0,119250.0,0.339492]
[1755063177666,0.002,119260.0,119250.0,0.539492]
[1755063178601,0.001,119260.0,119250.0,0.539492]
[1755063178808,0.025142,119280.0,119250.0,0.539492]
[1755063178991,0.08272325,119270.0,119250.0,0.537542]
[1755063179227,0.08272325,119270.0,119260.0,0.00295]
[1755063179462,0.08272325,119270.0,119260.0,0.005]
[1755063179707,0.054448,119280.0,119260.0,0.005]
[1755063179908,0.13717125,119280.0,119270.0,0.13108]
[1755063180119,0.11202925,119280.0,119270.0,0.13313]
[1755063180320,0.11202925,119280.0,119270.0,0.13627]
[1755063182667,0.11302925,119280.0,119270.0,0.13627]
[1755063182903,0.030306,119280.0,119270.0,0.33627]
[1755063183307,0.031306,119280.0,119270.0,0.33627]
[1755063183788,0.029306,119280.0,119270.0,0.33627]
[1755063184246,0.02546478,119290.0,119270.0,0.33627]
[1755063184444,0.10818803,119290.0,119270.0,0.33627]
[1755063184676,0.08272325,119290.0,119280.0,0.00314]
[1755063184875,0.08272325,119290.0,119280.0,0.00519]
[1755063185187,0.8420642,119290.0,119280.0,0.00519]
[1755063187170,0.8430642,119290.0,119280.0,0.00519]
[1755063187608,0.03044205,119290.0,119280.0,0.00519]
[1755063187818,0.03144205,119290.0,119280.0,0.00519]
[1755063188344,0.0568591,119290.0,119280.0,0.00519]
[1755063188548,0.001,119290.0,119280.0,0.00519]
[1755063189172,0.7550369,119300.0,119280.0,0.00519]
[1755063189334,0.83776015,119300.0,119290.0,0.13104]
[1755063189529,0.83776015,119300.0,119290.0,0.13623]
[1755063190090,0.26769943,119320.0,119290.0,0.33623]
[1755063190091,0.82611088,119320.0,119290.0,0.33623]
[1755063190326,0.1121384,119310.0,119300.0,0.00314]
[1755063190538,0.81262215,119310.0,119300.0,0.20619]
[1755063190740,0.08272325,119310.0,119300.0,0.20619]
[1755063190940,0.81262215,119310.0,119300.0,0.20619]
[1755063191130,0.83775615,119310.0,119300.0,0.20619]
[1755063191340,0.86826219,119310.0,119300.0,0.20619]
[1755063191504,0.13836329,119310.0,119300.0,0.20619]
[1755063192159,0.1386697,119310.0,119300.0,0.20619]
[1755063193318,0.8685686,119310.0,119300.0,0.20619]
[1755063195580,0.8937026,119310.0,119300.0,0.20619]
[1755063196218,0.1638037,119310.0,119300.0,0.20619]
[1755063196421,0.8937026,119310.0,119300.0,0.20619]
[1755063197747,0.8685686,119310.0,119300.0,0.20619]
[1755063198805,0.91647374,119310.0,119300.0,0.20619]
[1755063202360,0.1386697,119310.0,119300.0,0.20619]
[1755063202600,0.91647374,119310.0,119300.0,0.20619]
[1755063202937,0.1386697,119310.0,119300.0,0.20619]
[1755063203141,0.91647374,119310.0,119300.0,0.20619]
[1755063207674,0.05594645,119310.0,119300.0,0.20619]